Workbook

Sheet 등록금
B1: 2022 등록금
E3: 이학 | F3: 공학
D4: 전공 | E4: 에너지물리 에너지화학 | F4: 화공재료환경
D5: 수업료 | E5: 5466000 | F5: 6324000
B8: 에너지시스템 장학내용(공학과정)
B10: 과정 | C10: 장학이름 | D10: 배정비율 | E10: 공학
E11: 장학내용 | F11: 감면금액 | G11: BK지원금 | H11: 교비지원금 | I11: 합계
B12: 석사 | C12: 에너지특별장학S | D12: 0.3 | E12: 등록금 25% 감면 +BK지원금(70만원) | F12: =F5*0.25 -> 1581000 | G12: 4200000 | H12: 0 | I12: =F12+G12+H12 -> 5781000
C13: 에너지우수장학A | D13: 0.4 | E13: 등록금 10% 감면 +BK지원금(70만원) | F13: =F5*0.1 -> 632400 | G13: 4200000 | H13: 0 | I13: 4832400
C14: 에너지연구장학B | D14: 0.3 | E14: 등록금 5% 감면 +교비지원금(60만원) | F14: =F5*0.05 -> 316200 | G14: 0 | H14: 3600000 | I14: 3916200
B15: 박사 | C15: 에너지BK장학S | D15: 0.2 | E15: 등록금 25% 감면 +BK지원금(130만원) +교비지원금(20만원) | F15: =F5*0.25 -> 1581000 | G15: 7800000 | H15: 1200000 | I15: 10581000
C16: 에너지BK장학A | D16: 0.5 | E16: 등록금 20% 감면 +BK지원금(130만원) | F16: =F5*0.2 -> 1264800 | G16: 7800000 | H16: 0 | I16: 9064800
C17: 에너지아주장학B | D17: 0.3 | E17: 등록금 45% 감면 +교비지원금(80만원) | F17: =F5*0.45 -> 2845800 | G17: 0 | H17: 4800000 | I17: 7645800
B18: 박사 수료 | C18: 에너지BK장학S | D18: 0.2 | E18: BK지원금(100만원) +교비지원금(20만원) | G18: 6000000 | H18: 1200000 | I18: 7200000
C19: 에너지BK장학A | D19: 0.5 | E19: BK지원금(100만원) | G19: 6000000 | I19: 6000000
C20: 에너지아주장학B | D20: 0.3 | E20: 교비지원금(80만원) | H20: 4800000 | I20: 4800000
B22: 에너지시스템 장학내용(이학과정)
B24: 과정 | C24: 장학이름 | D24: 배정비율 | E24: 이학
E25: 장학내용 | F25: 감면금액 | G25: BK지원금 | H25: 교비지원금 | I25: 합계
B26: 석사 | C26: 에너지특별장학S | D26: 0.3 | E26: 등록금 25% 감면 +BK지원금(70만원) | F26: =E5*0.25 -> 1366500 | G26: 4200000 | H26: 0 | I26: =F26+G26+H26 -> 5566500
C27: 에너지우수장학A | D27: 0.4 | E27: 등록금 10% 감면 +BK지원금(70만원) | F27: =E5*0.1 -> 546600 | G27: 4200000 | H27: 0 | I27: 4746600
C28: 에너지연구장학B | D28: 0.3 | E28: 교비지원금(60만원) | F28: =F5*0 -> 0 | G28: 0 | H28: 3600000 | I28: 3600000
B29: 박사 | C29: 에너지BK장학S | D29: 0.2 | E29: 등록금 25% 감면 +BK지원금(130만원) +교비지원금(20만원) | F29: =E5*0.25 -> 1366500 | G29: 7800000 | H29: 1200000 | I29: 10366500
C30: 에너지BK장학A | D30: 0.5 | E30: 등록금 20% 감면 +BK지원금(130만원) | F30: =E5*0.2 -> 1093200 | G30: 7800000 | H30: 0 | I30: 8893200
C31: 에너지아주장학B | D31: 0.3 | E31: 등록금 45% 감면 +교비지원금(80만원) | F31: =E5*0.45 -> 2459700 | G31: 0 | H31: 4800000 | I31: 7259700
B32: 박사 수료 | C32: 에너지BK장학S | D32: 0.2 | E32: BK지원금(100만원) +교비지원금(20만원) | G32: 6000000 | H32: 1200000 | I32: 7200000
C33: 에너지BK장학A | D33: 0.5 | E33: BK지원금(100만원) | G33: 6000000 | I33: 6000000
C34: 에너지아주장학B | D34: 0.3 | E34: 교비지원금(80만원) | H34: 4800000 | I34: 4800000

Sheet 에너지 (hidden)
A2: 에너지
A4: 연번 | B4: 이름 | C4: 지도교수 | D4: 과정 | E4: 2020-2 기준 학기 | F4: 총점 | G4: 장학(안) | H4: 비고 | I4: 학번 | K4: 배정 비율 | L4: 장학내용 | M4: 공학
A5: 에너지 | B5: NOORFATIMA NADYA | C5: 정재성 | D5: 석사 | E5: 4 | H5: 외국인연구장학(석사 60%) | I5: 201924262 | M5: 감면금액 | N5: BK지원금 | P5: 합계 | Q5: 배정인원 | S5: 감면금액 | T5: BK지원금 | V5: 교비지원금 | X5: 공학
K6: 석사 | L6: 등록금의 40% | M6: =X7*40% -> 2463200 | P6: =SUM(M6:O6) -> 2463200 | Q6: 1 | S6: =M6*(Q6-1) -> 0 | T6: =N6*(Q6) -> 0 | U6: =O6*Q6 -> 0 | X6: 화공재료
A7: 연번 | B7: 이름 | C7: 지도교수 | D7: 과정 | E7: 2020-2 기준 학기 | F7: 총점 | G7: 장학(안) | H7: 비고 | I7: 학번 | K7: 박사 | L7: 등록금의 80% | M7: =X7*80% -> 4926400 | P7: =SUM(M7:O7) -> 4926400 | Q7: 7 | S7: =M7*(Q7-4) -> 14779200 | T7: =N7*(Q7-0) -> 0 | U7: =O7*R7 -> 0 | V7: =N7*(0) -> 0 | X7: 6158000
A8: 에너지 | B8: ISHFAQ MUHAMMAD | C8: 정재성 | D8: 박사 | E8: 2 | I8: 202025695 | L8: * 대학원 일반 장학 비율 | S8: =SUM(S6:S7) -> 14779200 | T8: =SUM(T6:T7) -> 0 | U8: =SUM(U6:U7) -> 0 | V8: =SUM(V6:V7) -> 0
A9: 에너지 | B9: WIDIPUTRA VICTOR | C9: 정재성 | D9: 박사 | E9: 8 | H9: 인도네시아/외국인A/수료 | I9: 201725198
A10: 에너지 | B10: 공준혁 | C10: 정재성 | D10: 통합(박사) | E10: 8 | H10: 수료 | I10: 201725127
A11: 에너지 | B11: 서홍석 | C11: 원지도 : 김형택 | D11: 박사 | E11: 7 | H11: 수료 | I11: 201725300
A12: 에너지 | B12: 양예진 | C12: 정재성 | D12: 통합(박사) | E12: 6 | I12: 201824496
A13: 에너지 | B13: 장동욱 | C13: 정재성 | D13: 박사 | E13: 4 | I13: 201925073
A14: 신입 | B14: 김문태

Sheet 2022-2 감면액
A2: 연번 | B2: 계열 | C2: 세부전공 | D2: 학번 | E2: 장학명 | F2: 감면액 | G2: BK지원금 | H2: 교비
A3: 1 | B3: 공학 | C3: 에너지 | D3: 202225170 | E3: 외국인연구장학(박사) | K3: 공학 | L3: 감면금액 | M3: BK지원금 | N3: 교비지원금
A4: 2 | B4: 공학 | C4: 에너지 | D4: 202125997 | E4: 석사연구장학 | F4: =6324000*40% -> 2529600 | J4: 석사 | K4: 에너지특별장학S | L4: 1581000 | M4: 4200000 | N4: 0
A5: 3 | B5: 공학 | C5: 에너지 | D5: 202124879 | E5: 석사연구장학 | F5: =6324000*40% -> 2529600 | K5: 에너지우수장학A | L5: 632400 | M5: 4200000 | N5: 0
A6: 4 | B6: 공학 | C6: 에너지환경공학 | D6: 202124171 | E6: 에너지특별장학S | F6: 1581000 | G6: 4200000 | H6: 0 | K6: 에너지연구장학B | L6: 316200 | M6: 0 | N6: 3600000
A7: 5 | B7: 공학 | C7: 에너지화학공학 | D7: 202124169 | E7: 에너지특별장학S | F7: 1581000 | G7: 4200000 | H7: 0 | J7: 박사 | K7: 에너지BK장학S | L7: 1581000 | M7: 7800000 | N7: 1200000
A8: 6 | B8: 공학 | C8: 에너지화학공학 | D8: 202124385 | E8: 에너지특별장학S | G8: 4200000 | H8: 0 | K8: 에너지BK장학A | L8: 1264800 | M8: 7800000 | N8: 0
A9: 7 | B9: 공학 | C9: 에너지화학공학 | D9: 202124172 | E9: 에너지특별장학S | F9: 1581000 | G9: 4200000 | K9: 에너지아주장학B | L9: 2845800 | M9: 0 | N9: 4800000
A10: 8 | B10: 공학 | C10: 에너지화학공학 | D10: 202124167 | E10: 에너지특별장학S | F10: 1581000 | G10: 4200000 | H10: 0 | J10: 수료 | K10: 에너지BK장학S | M10: 6000000 | N10: 1200000
A11: 9 | B11: 공학 | C11: 에너지화학공학 | D11: 202124166 | E11: 에너지특별장학S | F11: 1581000 | H11: 4200000 | I11: *교비로 지급 | K11: 에너지BK장학A | M11: 6000000
A12: 10 | B12: 공학 | C12: 에너지화학공학 | D12: 202124174 | E12: 에너지우수장학A | F12: 632400 | G12: 4200000 | H12: 0 | K12: 에너지아주장학B | N12: 4800000
A13: 11 | B13: 공학 | C13: 에너지화학공학 | D13: 202224135 | E13: 에너지우수장학A | F13: 632400 | G13: 4200000 | H13: 0
A14: 12 | B14: 공학 | C14: 에너지화학공학 | D14: 202124386 | E14: 에너지우수장학A | F14: 632400 | G14: 4200000 | H14: 0
A15: 13 | B15: 공학 | C15: 에너지화학공학 | D15: 202224141 | E15: 에너지우수장학A | F15: 632400 | G15: 4200000 | H15: 0 | K15: 이학 | L15: 감면금액 | M15: BK지원금 | N15: 교비지원금
A16: 14 | B16: 공학 | C16: 에너지화학공학 | D16: 202124173 | E16: 에너지우수장학A | F16: 632400 | G16: 4200000 | H16: 0 | J16: 석사 | K16: 에너지특별장학S | L16: 1366500 | M16: 4200000 | N16: 0
A17: 15 | B17: 공학 | C17: 에너지화학공학 | D17: 202124387 | E17: 에너지우수장학A | F17: 632400 | G17: 4200000 | H17: 0 | K17: 에너지우수장학A | L17: 546600 | M17: 4200000 | N17: 0
A18: 16 | B18: 공학 | C18: 에너지화학공학 | D18: 202224140 | E18: 에너지우수장학A | F18: 632400 | G18: 4200000 | H18: 0 | K18: 에너지연구장학B | L18: 0 | M18: 0 | N18: 3600000
A19: 17 | B19: 공학 | C19: 에너지화학공학 | D19: 202224139 | E19: 에너지연구장학B | F19: 316200 | G19: 0 | H19: 3600000 | J19: 박사 | K19: 에너지BK장학S | L19: 1366500 | M19: 7800000 | N19: 1200000
A20: 18 | B20: 공학 | C20: 에너지화학공학 | D20: 202224138 | E20: 에너지연구장학B | F20: 316200 | G20: 0 | H20: 3600000 | K20: 에너지BK장학A | L20: 1093200 | M20: 7800000 | N20: 0
A21: 19 | B21: 공학 | C21: 에너지화학공학 | D21: 202124170 | E21: 에너지연구장학B | F21: 316200 | G21: 0 | H21: 3600000 | K21: 에너지아주장학B | L21: 2459700 | M21: 0 | N21: 4800000
A22: 20 | B22: 공학 | C22: 에너지화학공학 | D22: 202224136 | E22: 에너지연구장학B | F22: 316200 | G22: 0 | H22: 3600000 | J22: 수료 | K22: 에너지BK장학S | M22: 6000000 | N22: 1200000
A23: 21 | B23: 공학 | C23: 에너지화학공학 | D23: 202224137 | E23: 에너지연구장학B | F23: 316200 | G23: 0 | H23: 3600000 | K23: 에너지BK장학A | M23: 6000000
A24: 22 | B24: 공학 | C24: 에너지화학공학 | D24: 202124388 | E24: 에너지연구장학B | F24: 316200 | G24: 0 | H24: 3600000 | K24: 에너지아주장학B | N24: 4800000
A25: 23 | B25: 공학 | C25: 에너지화학공학 | D25: 202125860 | E25: 에너지BK장학S | G25: 7800000 | H25: 1200000
A26: 24 | B26: 공학 | C26: 에너지화학공학 | D26: 202024618 | E26: 에너지BK장학A | F26: 1264800 | G26: 7800000
A27: 25 | B27: 공학 | C27: 에너지화학공학 | D27: 201925620 | E27: 에너지BK장학A | G27: 6000000
A28: 26 | B28: 공학 | C28: 에너지화학공학 | D28: 202025740 | E28: 에너지BK장학A | G28: 6000000 | J28: 석사 | K28: 에너지특별장학S | M28: S
A29: 27 | B29: 공학 | C29: 에너지화학공학 | D29: 202125859 | E29: 에너지BK장학A | G29: 7800000 | H29: 0 | K29: 에너지우수장학A | M29: A
A30: 28 | B30: 공학 | C30: 에너지화학공학 | D30: 202025740 | E30: 에너지BK장학A | H30: 6000000 | I30: *교비로 지급 | K30: 에너지연구장학B | M30: B
A31: 29 | B31: 공학 | C31: 에너지화학공학 | D31: 201925575 | E31: 에너지아주장학B | H31: 4800000 | J31: 박사 | K31: 에너지BK장학S | M31: S
A32: 30 | B32: 공학 | C32: 에너지화학공학 | D32: 201724769 | E32: 에너지아주장학B | H32: 4800000 | K32: 에너지BK장학A | M32: A
A33: 31 | B33: 공학 | C33: 에너지화학공학 | D33: 202225169 | E33: 에너지아주장학B | F33: 2845800 | G33: 0 | H33: 4800000 | K33: 에너지아주장학B | M33: B
A34: 32 | B34: 공학 | C34: 에너지재료공학 | D34: 202224268 | E34: 에너지특별장학S | F34: 1581000 | G34: 4200000 | H34: 0
A35: 33 | B35: 공학 | C35: 에너지재료공학 | D35: 202124391 | E35: 에너지특별장학S | F35: 1581000 | G35: 4200000 | H35: 0
A36: 34 | B36: 공학 | C36: 에너지재료공학 | D36: 202124287 | E36: 에너지특별장학S | F36: 1581000 | G36: 4200000 | H36: 0
A37: 35 | B37: 공학 | C37: 에너지재료공학 | D37: 202124389 | E37: 에너지특별장학S | F37: 1581000 | G37: 4200000 | H37: 0
A38: 36 | B38: 공학 | C38: 에너지재료공학 | D38: 202024847 | E38: 에너지특별장학S | F38: 1581000 | G38: 4200000 | H38: 0
A39: 37 | B39: 공학 | C39: 에너지재료공학 | D39: 202124288 | E39: 에너지특별장학S | F39: 1581000 | G39: 4200000 | H39: 0
A40: 38 | B40: 공학 | C40: 에너지재료공학 | D40: 202224144 | E40: 에너지우수장학A | F40: 632400 | G40: 4200000 | H40: 0
A41: 39 | B41: 공학 | C41: 에너지재료공학 | D41: 202124286 | E41: 에너지우수장학A | F41: 632400 | G41: 4200000 | H41: 0
A42: 40 | B42: 공학 | C42: 에너지재료공학 | D42: 202224143 | E42: 에너지우수장학A | F42: 632400 | G42: 4200000 | H42: 0
A43: 41 | B43: 공학 | C43: 에너지재료공학 | D43: 202124285 | E43: 에너지연구장학B | F43: 316200 | G43: 0 | H43: 3600000
A44: 42 | B44: 공학 | C44: 에너지재료공학 | D44: 202224142 | E44: 에너지연구장학B | F44: 316200 | G44: 0 | H44: 3600000
A45: 43 | B45: 공학 | C45: 에너지재료공학 | D45: 202124175 | E45: 에너지연구장학B | F45: 316200 | G45: 0 | H45: 3600000
A46: 44 | B46: 공학 | C46: 에너지재료공학 | D46: 202224145 | E46: 에너지연구장학B | F46: 316200 | G46: 0 | H46: 3600000
A47: 45 | B47: 공학 | C47: 에너지재료공학 | D47: 202124390 | E47: 에너지연구장학B | F47: 316200 | G47: 0 | H47: 3600000
A48: 46 | B48: 공학 | C48: 에너지재료공학 | D48: 202224267 | E48: 에너지연구장학B | F48: 316200 | G48: 0 | H48: 3600000
A49: 47 | B49: 공학 | C49: 에너지재료공학 | D49: 201624275 | E49: 에너지BK장학S | G49: 6000000 | H49: 1200000
A50: 48 | B50: 공학 | C50: 에너지재료공학 | D50: 201924221 | E50: 에너지BK장학S | G50: 6000000 | H50: 1200000
A51: 49 | B51: 공학 | C51: 에너지재료공학 | D51: 202025788 | E51: 에너지BK장학S | G51: 6000000 | H51: 1200000
A52: 50 | B52: 공학 | C52: 에너지재료공학 | D52: 201925020 | E52: 에너지BK장학A | G52: 6000000 | H52: 0
A53: 51 | B53: 공학 | C53: 에너지재료공학 | D53: 202025697 | E53: 에너지BK장학A | G53: 6000000 | H53: 0
A54: 52 | B54: 공학 | C54: 에너지재료공학 | D54: 201924264 | E54: 에너지BK장학A | G54: 6000000 | H54: 0
A55: 53 | B55: 공학 | C55: 에너지재료공학 | D55: 202025698 | E55: 에너지BK장학A | G55: 6000000 | H55: 0
A56: 54 | B56: 공학 | C56: 에너지재료공학 | D56: 201924359 | E56: 에너지BK장학A | F56: 1264800 | G56: 7800000 | H56: 0
A57: 55 | B57: 공학 | C57: 에너지재료공학 | D57: 202125963 | E57: 에너지BK장학A | G57: 7800000 | H57: 0
A58: 56 | B58: 공학 | C58: 에너지재료공학 | D58: 201925549 | E58: 에너지BK장학A | G58: 6000000 | H58: 0
A59: 57 | B59: 공학 | C59: 에너지재료공학 | D59: 202125861 | E59: 에너지아주장학B | G59: 0 | H59: 4800000
A60: 58 | B60: 공학 | C60: 에너지재료공학 | D60: 201924223 | E60: 에너지아주장학B | H60: 4800000
A61: 59 | B61: 공학 | C61: 에너지재료공학 | D61: 202125862 | E61: 에너지아주장학B | G61: 0 | H61: 4800000
A62: 60 | B62: 공학 | C62: 에너지재료공학 | D62: 201725129 | E62: 에너지아주장학B | H62: 4800000
A63: 61 | B63: 공학 | C63: 에너지재료공학 | D63: 202125964 | E63: 에너지아주장학B | G63: 0 | H63: 4800000
A64: 62 | B64: 이학 | C64: 에너지화학 | D64: 202124161 | E64: 에너지특별장학S | F64: 1366500 | G64: 4200000 | H64: 0
A65: 63 | B65: 이학 | C65: 에너지화학 | D65: 202124163 | E65: 에너지특별장학S | F65: 1366500 | G65: 4200000 | H65: 0
A66: 64 | B66: 이학 | C66: 에너지화학 | D66: 202124400 | E66: 에너지특별장학S | F66: 1366500 | G66: 4200000 | H66: 0
A67: 65 | B67: 이학 | C67: 에너지화학 | D67: 202224156 | E67: 에너지특별장학S | F67: 1366500 | G67: 4200000 | H67: 0
A68: 66 | B68: 이학 | C68: 에너지화학 | D68: 202224158 | E68: 에너지특별장학S | F68: 1366500 | G68: 4200000 | H68: 0
A69: 67 | B69: 이학 | C69: 에너지화학 | D69: 202124164 | E69: 에너지특별장학S | F69: 1366500 | G69: 4200000 | H69: 0
A70: 68 | B70: 이학 | C70: 에너지화학 | D70: 202124398 | E70: 에너지연구장학B | F70: 0 | G70: 0 | H70: 3600000
A71: 69 | B71: 이학 | C71: 에너지화학 | D71: 202224159 | E71: 에너지연구장학B | F71: 0 | G71: 0 | H71: 3600000
A72: 70 | B72: 이학 | C72: 에너지화학 | D72: 202124881 | E72: 에너지연구장학B | F72: 0 | G72: 0 | H72: 3600000
A73: 71 | B73: 이학 | C73: 에너지화학 | D73: 202124396 | E73: 에너지연구장학B | F73: 0 | G73: 0 | H73: 3600000
A74: 72 | B74: 이학 | C74: 에너지화학 | D74: 202124165 | E74: 에너지연구장학B | F74: 0 | G74: 0 | H74: 3600000
A75: 73 | B75: 이학 | C75: 에너지화학 | D75: 202124395 | E75: 에너지연구장학B | F75: 0 | G75: 0 | H75: 3600000
A76: 74 | B76: 이학 | C76: 에너지화학 | D76: 202124895 | E76: 에너지연구장학B | F76: 0 | G76: 0 | H76: 3600000
A77: 75 | B77: 이학 | C77: 에너지화학 | D77: 202224161 | E77: 에너지연구장학B | F77: 0 | G77: 0 | H77: 3600000
A78: 76 | B78: 이학 | C78: 에너지화학 | D78: 202224160 | E78: 에너지연구장학B | F78: 0 | G78: 0 | H78: 3600000
A79: 77 | B79: 이학 | C79: 에너지화학 | D79: 202124162 | E79: 에너지연구장학B | F79: 0 | G79: 0 | H79: 3600000
A80: 78 | B80: 이학 | C80: 에너지화학 | D80: 202124399 | E80: 에너지연구장학B | F80: 0 | G80: 0 | H80: 3600000
A81: 79 | B81: 이학 | C81: 에너지화학 | D81: 201824478 | E81: 에너지BK장학S | G81: 6000000 | H81: 1200000
A82: 80 | B82: 이학 | C82: 에너지화학 | D82: 202024615 | E82: 에너지BK장학S | F82: 1366500 | H82: =1200000+7800000 -> 9000000 | I82: *교비로 지급
A83: 81 | B83: 이학 | C83: 에너지화학 | D83: 201824668 | E83: 에너지BK장학A | G83: 6000000
A84: 82 | B84: 이학 | C84: 에너지화학 | D84: 202125967 | E84: 에너지BK장학A | F84: 1093200 | H84: 7800000 | I84: *교비로 지급
A85: 83 | B85: 이학 | C85: 에너지화학 | D85: 202024613 | E85: 에너지BK장학A | F85: 1093200 | G85: 7800000 | H85: 0
A86: 84 | B86: 이학 | C86: 에너지화학 | D86: 202024612 | E86: 에너지BK장학A | F86: 1093200 | G86: 7800000 | H86: 0
A87: 85 | B87: 이학 | C87: 에너지화학 | D87: 201925558 | E87: 에너지BK장학A | G87: 6000000
A88: 86 | B88: 이학 | C88: 에너지화학 | D88: 201924208 | E88: 에너지BK장학A | F88: 1093200 | G88: 7800000 | H88: 0
A89: 87 | B89: 이학 | C89: 에너지화학 | D89: 201924212 | E89: 에너지BK장학A | G89: 6000000
A90: 88 | B90: 이학 | C90: 에너지화학 | D90: 201925619 | E90: 에너지아주장학B | H90: 4800000
A91: 89 | B91: 이학 | C91: 에너지화학 | D91: 201924355 | E91: 에너지아주장학B | F91: 2459700 | G91: 0 | H91: 4800000
A92: 90 | B92: 이학 | C92: 에너지화학 | D92: 202225171 | E92: 에너지아주장학B | F92: 2459700 | G92: 0 | H92: 4800000
A93: 91 | B93: 이학 | C93: 에너지화학 | D93: 202024803 | E93: 에너지아주장학B | F93: 2459700 | G93: 0 | H93: 4800000
A94: 92 | B94: 이학 | C94: 에너지물리 | D94: 202124157 | E94: 에너지특별장학S | F94: 1366500 | G94: 4200000 | H94: 0
A95: 93 | B95: 이학 | C95: 에너지물리 | D95: 202124154 | E95: 에너지특별장학S | G95: 4200000 | H95: 0
A96: 94 | B96: 이학 | C96: 에너지물리 | D96: 202124155 | E96: 에너지특별장학S | F96: 1366500 | G96: 4200000 | H96: 0
A97: 95 | B97: 이학 | C97: 에너지물리 | D97: 202124393 | E97: 에너지특별장학S | F97: 1366500 | G97: 4200000 | H97: 0
A98: 96 | B98: 이학 | C98: 에너지물리 | D98: 202124159 | E98: 에너지특별장학S | F98: 1366500 | G98: 4200000 | H98: 0
A99: 97 | B99: 이학 | C99: 에너지물리 | D99: 202224269 | E99: 에너지우수장학A | F99: 546600 | G99: 4200000 | H99: 0
A100: 98 | B100: 이학 | C100: 에너지물리 | D100: 202124156 | E100: 에너지우수장학A | F100: 546600 | G100: 4200000 | H100: 0
A101: 99 | B101: 이학 | C101: 에너지물리 | D101: 202124158 | E101: 에너지우수장학A | F101: 546600 | G101: 4200000 | H101: 0
A102: 100 | B102: 이학 | C102: 에너지물리 | D102: 202224151 | E102: 에너지우수장학A | F102: 546600 | G102: 4200000 | H102: 0
A103: 101 | B103: 이학 | C103: 에너지물리 | D103: 202224154 | E103: 에너지연구장학B | F103: 0 | G103: 0 | H103: 3600000
A104: 102 | B104: 이학 | C104: 에너지물리 | D104: 202124160 | E104: 에너지연구장학B | F104: 0 | G104: 0 | H104: 3600000
A105: 103 | B105: 이학 | C105: 에너지물리 | D105: 202224155 | E105: 에너지연구장학B | F105: 0 | G105: 0 | H105: 3600000
A106: 104 | B106: 이학 | C106: 에너지물리 | D106: 202225116 | E106: 에너지연구장학B | F106: 0 | G106: 0 | H106: 3600000
A107: 105 | B107: 이학 | C107: 에너지물리 | D107: 202224150 | E107: 에너지연구장학B | F107: 0 | G107: 0 | H107: 3600000
A108: 106 | B108: 이학 | C108: 에너지물리 | D108: 202224153 | E108: 에너지연구장학B | F108: 0 | G108: 0 | H108: 3600000
A109: 107 | B109: 이학 | C109: 에너지물리 | D109: 202024800 | E109: 에너지BK장학S | F109: 1366500 | G109: 7800000 | H109: 1200000
A110: 108 | B110: 이학 | C110: 에너지물리 | D110: 201725126 | E110: 에너지BK장학S | G110: 6000000 | H110: 1200000
A111: 109 | B111: 이학 | C111: 에너지물리 | D111: 202125966 | E111: 에너지BK장학A | F111: 1093200 | G111: 7800000 | H111: 0
A112: 110 | B112: 이학 | C112: 에너지물리 | D112: 201924351 | E112: 에너지BK장학A | F112: 1093200 | G112: 7800000 | H112: 0
A113: 111 | B113: 이학 | C113: 에너지물리 | D113: 202025693 | E113: 에너지BK장학A | G113: 6000000
A114: 112 | B114: 이학 | C114: 에너지물리 | D114: 201824470 | E114: 에너지BK장학A | G114: 6000000
A115: 113 | B115: 이학 | C115: 에너지물리 | D115: 201925071 | E115: 에너지BK장학A | G115: 6000000
A116: 114 | B116: 이학 | C116: 에너지물리 | D116: 202225733 | E116: 에너지BK장학A | F116: 1093200 | G116: 7800000 | H116: 0
A117: 115 | B117: 이학 | C117: 에너지물리 | D117: 202025737 | E117: 에너지BK장학A | G117: 6000000
A118: 116 | B118: 이학 | C118: 에너지물리 | D118: 201924352 | E118: 에너지아주장학B | F118: 2459700 | G118: 0 | H118: 4800000
A119: 117 | B119: 이학 | C119: 에너지물리 | D119: 201925574 | E119: 에너지아주장학B | H119: 4800000
A120: 118 | B120: 이학 | C120: 에너지물리 | D120: 202025738 | E120: 에너지아주장학B | H120: 4800000
A121: 119 | B121: 이학 | C121: 에너지물리 | D121: 202025786 | E121: 에너지아주장학B | H121: 4800000

Sheet 2022-1 감면액 (hidden)
A2: 연번 | B2: 계열 | C2: 세부전공 | D2: 이름 | E2: 지도교수 | F2: 과정 | G2: 학기 | H2: 학번 | I2: 총점 | J2: 장학 | K2: 장학명 | L2: 감면액 | M2: BK지원금 | N2: 교비 | O2: 비고(외국인장학등급)
A3: 1 | B3: 공학 | C3: 에너지 | D3: WENDHA BRIGITTA | E3: 정재성 | F3: 박사 | G3: 1 | I3: 신입 | K3: 외국인연구장학(박사) | L3: 외국인연구장학(박사) | R3: 공학 | S3: 감면금액 | T3: BK지원금 | U3: 교비지원금
A4: 7 | B4: 공학 | C4: 에너지 | D4: 이세미 | E4: 정재성 | F4: 석사 | G4: 2 | K4: 석사연구장학 | L4: =6324000*40% -> 2529600 | Q4: 석사 | R4: 에너지특별장학S | S4: 1581000 | T4: 4200000 | U4: 0
A5: 4 | B5: 공학 | C5: 에너지 | D5: 윤동현 | E5: 정재성 | F5: 석사 | G5: 2 | K5: 석사연구장학 | L5: =6324000*40% -> 2529600 | R5: 에너지우수장학A | S5: 632400 | T5: 4200000 | U5: 0
A6: 8 | B6: 공학 | C6: 에너지 | D6: LUTHFI MUHAMMAD | E6: 정재성 | F6: 석사 | G6: 4 | H6: 202024822 | K6: 외국인연구장학(석사) | L6: 외국인연구장학(석사) | O6: 외국인연구장학 | R6: 에너지연구장학B | S6: 316200 | T6: 0 | U6: 3600000
A7: 5 | B7: 공학 | C7: 에너지 | D7: NOORFATIMA NADYA | E7: 정재성 | F7: 통합(박사) | G7: 7 | H7: 201924262 | K7: 외국인연구장학(박사) | L7: 외국인연구장학(박사) | O7: 외국인연구장학 | Q7: 박사 | R7: 에너지BK장학S | S7: 1581000 | T7: 7800000 | U7: 1200000
A8: 9 | B8: 공학 | C8: 에너지 | D8: 김문태 | E8: 김수덕 | F8: 박사 | G8: 4 | H8: 202025797 | K8: 박사연구장학 | L8: =6324000*80% -> 5059200 | R8: 에너지BK장학A | S8: 1264800 | T8: 7800000 | U8: 0
C9: 에너지 | L9: =L4+L5+L8 -> 10118400 | M9: =SUM(M3:M8) -> 0 | N9: =SUM(N3:N8) -> 0 | R9: 에너지아주장학B | S9: 2845800 | T9: 0 | U9: 4800000
A10: 1 | B10: 공학 | C10: 에너지환경공학 | D10: 박찬영 | E10: 이제찬 | F10: 석사 | G10: 3 | H10: 202124168 | I10: 1711.5 | J10: S | K10: 에너지특별장학S | L10: 1556250 | M10: 4200000 | N10: 0 | Q10: 수료 | R10: 에너지BK장학S | T10: 6000000 | U10: 1200000
D11: 이나현 | E11: 이제찬 | F11: 석사 | G11: 3 | H11: 202124171 | I11: 1600 | J11: A | R11: 에너지BK장학A | T11: 6000000
D12: 주정희 | E12: 이제찬 | F12: 석사 | G12: 2 | H12: 202124392 | I12: 1308 | J12: B | R12: 에너지아주장학B | U12: 4800000
D13: 이선호 | E13: 이제찬 | F13: 석사 | G13: 1 | H13: 정시 | J13: A
D14: 양우영 | E14: 이제찬 | F14: 석사 | G14: 1 | H14: 정시 | J14: A
A15: 2 | B15: 공학 | C15: 에너지환경공학 | D15: 이희수 | E15: 이제찬 | F15: 석사 | G15: 1 | H15: 정시 | J15: A | K15: 에너지특별장학S | L15: 1556250 | N15: 4200000 | R15: 이학 | S15: 감면금액 | T15: BK지원금 | U15: 교비지원금
A16: 3 | B16: 공학 | C16: 에너지환경공학 | D16: 최희영 | E16: 이제찬 | F16: 석사 | G16: 1 | H16: 정시 | J16: A | K16: 에너지우수장학A | L16: 622500 | M16: 4200000 | N16: 0 | Q16: 석사 | R16: 에너지특별장학S | S16: 1366500 | T16: 4200000 | U16: 0
C17: 에너지환경공학 | L17: =SUM(L10:L16) -> 3735000 | M17: =SUM(M10:M16) -> 8400000 | N17: =SUM(N10:N16) -> 4200000 | R17: 에너지우수장학A | S17: 546600 | T17: 4200000 | U17: 0
A18: 4 | B18: 공학 | C18: 에너지화학공학 | D18: 유상현 | E18: 김창구 | F18: 통합(석사) | G18: 4 | H18: 202024618 | I18: 941 | J18: S | K18: 에너지특별장학S | L18: 1556250 | M18: 4200000 | N18: 0 | R18: 에너지연구장학B | S18: 0 | T18: 0 | U18: 3600000
A19: 5 | B19: 공학 | C19: 에너지화학공학 | D19: 박종윤 | E19: 황종국 | F19: 석사 | G19: 2 | H19: 202124167 | I19: 817 | J19: S | K19: 에너지특별장학S | L19: 1556250 | M19: 4200000 | N19: 0 | Q19: 박사 | R19: 에너지BK장학S | S19: 1366500 | T19: 7800000 | U19: 1200000
A20: 6 | B20: 공학 | C20: 에너지화학공학 | D20: 이지윤 | E20: 황종국 | F20: 석사 | G20: 2 | H20: 202124173 | I20: 797 | J20: S | K20: 에너지특별장학S | L20: 1556250 | M20: 4200000 | N20: 0 | R20: 에너지BK장학A | S20: 1093200 | T20: 7800000 | U20: 0
A21: 7 | B21: 공학 | C21: 에너지화학공학 | D21: 김병묵 | E21: 신치범 | F21: 석사 | G21: 3 | H21: 202024846 | I21: 651.5 | J21: A | K21: 에너지우수장학A | L21: 622500 | M21: 4200000 | N21: 0 | R21: 에너지아주장학B | S21: 2459700 | T21: 0 | U21: 4800000
A22: 8 | B22: 공학 | C22: 에너지화학공학 | D22: 박현 | E22: 박명준 | F22: 석사 | G22: 2 | H22: 202124169 | I22: 545 | J22: B | K22: 에너지연구장학B | L22: 311250 | M22: 0 | N22: 3600000 | Q22: 수료 | R22: 에너지BK장학S | T22: 6000000 | U22: 1200000
A23: 9 | B23: 공학 | C23: 에너지화학공학 | D23: 진대권 | E23: 김주민 | F23: 석사 | G23: 2 | H23: 202124174 | I23: 533 | J23: B | K23: 에너지연구장학B | L23: 311250 | M23: 0 | N23: 3600000 | R23: 에너지BK장학A | T23: 6000000
A24: 10 | B24: 공학 | C24: 에너지화학공학 | D24: 강서희 | E24: 신치범 | F24: 석사 | G24: 2 | H24: 202124166 | I24: 523 | J24: B | K24: 에너지연구장학B | L24: 311250 | M24: 0 | N24: 3600000 | R24: 에너지아주장학B | U24: 4800000
A25: 11 | B25: 공학 | C25: 에너지화학공학 | D25: 이유종 | E25: 김창구 | F25: 석사 | G25: 2 | H25: 202124172 | I25: 470 | J25: B | K25: 에너지연구장학B | L25: 311250 | M25: 0 | N25: 3600000
A26: 12 | B26: 공학 | C26: 에너지화학공학 | D26: 선은재 | E26: 김창구 | F26: 석사 | G26: 2 | H26: 202124170 | I26: 457 | J26: B | K26: 에너지연구장학B | L26: 311250 | M26: 0 | N26: 3600000
A27: 13 | B27: 공학 | C27: 에너지화학공학 | D27: 조영기 | F27: 석사 | G27: 1 | H27: 정시 | I27: 신입 | J27: A | K27: 에너지우수장학A | L27: 622500 | M27: 4200000 | N27: 0
A28: 14 | B28: 공학 | C28: 에너지화학공학 | D28: 양건식 | F28: 석사 | G28: 2 | H28: 정시 | I28: 신입 | J28: A | K28: 에너지우수장학A | L28: 622500 | M28: 4200000 | N28: 0
A29: 15 | B29: 공학 | C29: 에너지화학공학 | D29: XU ZHENCHAO | F29: 석사 | G29: 3 | H29: 외국인1차 | I29: 신입 | J29: A | K29: 에너지우수장학A | M29: 4200000 | N29: 0 | O29: 외국인연구장학(석사) | Q29: 석사 | R29: 에너지특별장학S | T29: S
A30: 16 | B30: 공학 | C30: 에너지화학공학 | D30: 오치영 | F30: 석사 | G30: 1 | H30: 정시 | I30: 신입 | J30: A | K30: 에너지우수장학A | L30: 622500 | M30: 4200000 | N30: 0 | R30: 에너지우수장학A | T30: A
A31: 17 | B31: 공학 | C31: 에너지화학공학 | D31: 김태빈 | F31: 석사 | G31: 1 | H31: 정시 | I31: 신입 | J31: A | K31: 에너지우수장학A | N31: 0 | P31: * 미입학 | R31: 에너지연구장학B | T31: B
A32: 18 | B32: 공학 | C32: 에너지화학공학 | D32: 강종규 | E32: 박은덕 | F32: 박사 | G32: 6 | H32: 201925575 | I32: 975 | J32: S | K32: 에너지BK장학S | M32: 6000000 | N32: 1200000 | O32: 수료 예정 | Q32: 박사 | R32: 에너지BK장학S | T32: S
A33: 19 | B33: 공학 | C33: 에너지화학공학 | D33: 김종식 | E33: 심태섭 | F33: 박사 | G33: 4 | H33: 202025740 | I33: 816 | J33: A | K33: 에너지BK장학A | L33: 1245000 | M33: 7800000 | N33: 0 | R33: 에너지BK장학A | T33: A
A34: 20 | B34: 공학 | C34: 에너지화학공학 | D34: 이동철 | E34: 신치범 | F34: 박사 | G34: 4 | H34: 202025741 | I34: 753.5 | J34: A | K34: 에너지BK장학A | L34: 1245000 | M34: 7800000 | N34: 0 | R34: 에너지아주장학B | T34: B
A35: 21 | B35: 공학 | C35: 에너지화학공학 | D35: 김다슬 | E35: 김주형 | F35: 통합(박사) | G35: 9 | H35: 201724769 | I35: 655 | J35: A | K35: 에너지BK장학A | M35: 6000000 | N35: 0 | O35: 수료
A36: 22 | B36: 공학 | C36: 에너지화학공학 | D36: NGUYEN THI THUY HA | E36: 박은덕 | F36: 박사 | G36: 2 | H36: 202125860 | I36: 620 | J36: A | K36: 에너지BK장학A | M36: 7800000 | N36: 0 | O36: 외국인연구장학(박사 80%)
A37: 23 | B37: 공학 | C37: 에너지화학공학 | D37: 우예솔 | E37: 박명준 | F37: 박사 | G37: 5 | H37: 201925620 | I37: 537.5 | J37: B | K37: 에너지아주장학B | N37: 4800000 | O37: 수료 예정
A38: 24 | B38: 공학 | C38: 에너지화학공학 | D38: MEHMOOD ADEEL | E38: 박은덕 | F38: 박사 | G38: 2 | H38: 202125859 | I38: 513 | J38: B | K38: 에너지아주장학B | M38: 0 | N38: 4800000 | O38: 외국인연구장학(박사 80%)
A39: 25 | B39: 공학 | C39: 에너지화학공학 | D39: POUDINEH NEDA | E39: 유성주 | F39: 박사 | G39: 5 | H39: 201925656 | I39: 486.5 | J39: B | K39: 에너지아주장학B | M39: 0 | N39: 4800000 | O39: 외국인연구장학(박사 80%)
C40: 에너지화학공학 | L40: =SUM(L18:L39) -> 11205000 | M40: =SUM(M18:M39) -> 69000000 | N40: =SUM(N18:N39) -> 33600000
A41: 26 | B41: 공학 | C41: 에너지재료공학 | D41: 임재성 | E41: 서형탁 | F41: 석사 | G41: 4 | H41: 202024622 | I41: 1403.5 | J41: S | K41: 에너지특별장학S | L41: 1556250 | M41: 4200000 | N41: 0
A42: 27 | B42: 공학 | C42: 에너지재료공학 | D42: 강민제 | E42: 조인선 | F42: 석사 | G42: 4 | H42: 202024619 | I42: 1058 | J42: S | K42: 에너지특별장학S | L42: 1556250 | M42: 4200000 | N42: 0
A43: 28 | B43: 공학 | C43: 에너지재료공학 | D43: 김노을 | E43: 류학기 | F43: 석사 | G43: 4 | H43: 202024620 | I43: 1014.5 | J43: S | K43: 에너지특별장학S | L43: 1556250 | M43: 4200000 | N43: 0
A44: 29 | B44: 공학 | C44: 에너지재료공학 | D44: 정유재 | E44: 조인선 | F44: 석사 | G44: 3 | H44: 202024849 | I44: 671.5 | J44: S | K44: 에너지특별장학S | L44: 1556250 | M44: 4200000 | N44: 0
A45: 30 | B45: 공학 | C45: 에너지재료공학 | D45: 황현식 | E45: 이재현 | F45: 석사 | G45: 4 | H45: 202024624 | I45: 652 | J45: S | K45: 에너지특별장학S | M45: 4200000 | N45: 0 | P45: *수료
A46: 31 | B46: 공학 | C46: 에너지재료공학 | D46: 배지권 | E46: 류학기 | F46: 석사 | G46: 2 | H46: 202124286 | I46: 600 | J46: S | K46: 에너지특별장학S | L46: 1556250 | M46: 4200000 | N46: 0
A47: 32 | B47: 공학 | C47: 에너지재료공학 | D47: 최효빈 | E47: 서형탁 | F47: 석사 | G47: 4 | H47: 202024623 | I47: 541.5 | J47: A | K47: 에너지우수장학A | L47: 622500 | M47: 4200000 | N47: 0
A48: 33 | B48: 공학 | C48: 에너지재료공학 | D48: 김운정 | E48: 서형탁 | F48: 석사 | G48: 3 | H48: 202024805 | I48: 522.5 | J48: A | K48: 에너지우수장학A | L48: 622500 | M48: 4200000 | N48: 0
A49: 34 | B49: 공학 | C49: 에너지재료공학 | D49: 이왕곤 | E49: 서형탁 | F49: 석사 | G49: 3 | H49: 202024848 | I49: 521.5 | J49: A | K49: 에너지우수장학A | L49: 622500 | M49: 4200000 | N49: 0
A50: 35 | B50: 공학 | C50: 에너지재료공학 | D50: 신희철 | E50: 서형탁 | F50: 석사 | G50: 4 | H50: 202024621 | I50: 521 | J50: B | K50: 에너지연구장학B | L50: 311250 | M50: 0 | N50: 3600000
A51: 36 | B51: 공학 | C51: 에너지재료공학 | D51: 신호준 | E51: 류학기 | F51: 석사 | G51: 2 | H51: 202124175 | I51: 500 | J51: B | K51: 에너지연구장학B | L51: 311250 | M51: 0 | N51: 3600000
A52: 37 | B52: 공학 | C52: 에너지재료공학 | D52: 김지웅 | E52: 서형탁 | F52: 석사 | G52: 2 | H52: 202124285 | I52: 488 | J52: B | K52: 에너지연구장학B | L52: 311250 | M52: 0 | N52: 3600000
A53: 38 | B53: 공학 | C53: 에너지재료공학 | D53: 안영환 | E53: 서형탁 | F53: 석사 | G53: 2 | H53: 202124287 | I53: 475 | J53: B | K53: 에너지연구장학B | L53: 311250 | M53: 0 | N53: 3600000
A54: 39 | B54: 공학 | C54: 에너지재료공학 | D54: 최준희 | E54: 이재현 | F54: 석사 | G54: 2 | H54: 202124288 | I54: 417 | J54: B | K54: 에너지연구장학B | L54: 311250 | M54: 0 | N54: 3600000
A55: 40 | B55: 공학 | C55: 에너지재료공학 | D55: SINGH RAHUL KUMAR | E55: 안병민 | F55: 통합(석사) | G55: 3 | H55: 202025024 | I55: 390 | J55: B | K55: 에너지연구장학B | M55: 0 | N55: 3600000 | O55: 외국인연구장학(석사 60%)
A56: 41 | B56: 공학 | C56: 에너지재료공학 | D56: 곽건호 | F56: 석사 | G56: 1 | H56: 정시 | I56: 신입 | J56: A | K56: 에너지우수장학A | L56: 622500 | M56: 4200000 | N56: 0
A57: 42 | B57: 공학 | C57: 에너지재료공학 | D57: 임석원 | F57: 석사 | G57: 1 | H57: 정시 | I57: 신입 | J57: A | K57: 에너지우수장학A | L57: 622500 | M57: 4200000 | N57: 0
A58: 43 | B58: 공학 | C58: 에너지재료공학 | D58: 조현호 | F58: 석사 | G58: 1 | H58: 정시 | I58: 신입 | J58: A | K58: 에너지우수장학A | L58: 622500 | M58: 4200000 | N58: 0
A59: 44 | B59: 공학 | C59: 에너지재료공학 | D59: 김범섭 | F59: 석사 | G59: 1 | H59: 수시2차 | I59: 신입 | J59: A | K59: 에너지우수장학A | N59: 0 | P59: * 미입학
A60: 45 | B60: 공학 | C60: 에너지재료공학 | D60: 홍소정 | F60: 석사 | G60: 1 | H60: 수시2차 | I60: 신입 | J60: A | K60: 에너지우수장학A | L60: 622500 | M60: 4200000 | N60: 0
A61: 46 | B61: 공학 | C61: 에너지재료공학 | D61: 문지윤 | E61: 이재현 | F61: 통합(박사) | G61: 6 | H61: 201925020 | I61: 1787.5 | J61: S | K61: 에너지BK장학S | L61: 1556250 | M61: 7800000 | N61: 1200000
A62: 47 | B62: 공학 | C62: 에너지재료공학 | D62: SIAL QADEER AKBAR | E62: 서형탁 | F62: 박사 | G62: 7 | H62: 201825375 | I62: 1266 | J62: S | K62: 에너지BK장학S | M62: 6000000 | N62: 1200000 | O62: 외국인연구장학(박사 80%)/수료(2020-2)
A63: 48 | B63: 공학 | C63: 에너지재료공학 | D63: 김승일 | E63: 이재현 | F63: 통합(박사) | G63: 6 | H63: 201924221 | I63: 1174 | J63: S | K63: 에너지BK장학S | L63: 1556250 | M63: 7800000 | N63: 1200000
A64: 49 | B64: 공학 | C64: 에너지재료공학 | D64: IQBAL SHAHID | E64: 서형탁 | F64: 박사 | G64: 8 | H64: 201825529 | I64: 1080 | J64: A | K64: 에너지BK장학A | M64: 6000000 | O64: 수료/외국인연구장학(박사 80%)
A65: 50 | B65: 공학 | C65: 에너지재료공학 | D65: 이한성 | E65: 안병민 | F65: 통합(박사) | G65: 8 | H65: 201624275 | I65: 1067 | J65: A | K65: 에너지BK장학A | M65: 6000000 | O65: 수료
A66: 51 | B66: 공학 | C66: 에너지재료공학 | D66: TAN RUNFA | E66: 조인선 | F66: 통합(박사) | G66: 6 | H66: 201924264 | I66: 848 | J66: A | K66: 에너지BK장학A | M66: 7800000 | N66: 0 | O66: 외국인연구장학(박사 80%)
A67: 52 | B67: 공학 | C67: 에너지재료공학 | D67: 이영재 | E67: 서형탁 | F67: 통합(박사) | G67: 6 | H67: 201924223 | I67: 807.5 | J67: A | K67: 에너지BK장학A | L67: 1245000 | M67: 7800000 | N67: 0
A68: 53 | B68: 공학 | C68: 에너지재료공학 | D68: 현상화 | E68: 이재현 | F68: 통합(박사) | G68: 5 | H68: 201924359 | I68: 780 | J68: A | K68: 에너지BK장학A | L68: 1245000 | M68: 7800000 | N68: 0
A69: 54 | B69: 공학 | C69: 에너지재료공학 | D69: YEASMIN RUBAYA | E69: 서형탁 | F69: 통합(박사) | G69: 6 | H69: 201925549 | I69: 626 | J69: A | K69: 에너지BK장학A | M69: 7800000 | N69: 0 | O69: 외국인연구장학(박사 80%)
A70: 55 | B70: 공학 | C70: 에너지재료공학 | D70: MEGERSA DABA DEME | E70: 류학기 | F70: 박사 | G70: 4 | H70: 202025697 | I70: 520 | J70: B | K70: 에너지아주장학B | M70: 0 | N70: 4800000 | O70: 외국인연구장학(박사 80%)
A71: 56 | B71: 공학 | C71: 에너지재료공학 | D71: QU LI | E71: 조인선 | F71: 박사 | G71: 4 | H71: 202025698 | I71: 487.5 | J71: B | K71: 에너지아주장학B | M71: 0 | N71: 4800000 | O71: 외국인연구장학(박사 80%)
A72: 57 | B72: 공학 | C72: 에너지재료공학 | D72: ALI BASIT RANA | E72: 서형탁 | F72: 박사 | G72: 2 | H72: 202125861 | I72: 467 | J72: B | K72: 에너지아주장학B | M72: 0 | N72: 4800000 | O72: 외국인연구장학(박사 80%)
A73: 58 | B73: 공학 | C73: 에너지재료공학 | D73: 한승익 | E73: 서형탁 | F73: 통합(박사) | G73: 10 | H73: 201725129 | I73: 461 | J73: B | K73: 에너지아주장학B | N73: 4800000 | O73: 수료
A74: 59 | B74: 공학 | C74: 에너지재료공학 | D74: TATACHARI SANTHANAGOPALAN SHRIDHARAN | E74: 조인선 | F74: 박사 | G74: 3 | H74: 202025788 | I74: 452.5 | J74: B | K74: 에너지아주장학B | M74: 0 | N74: 4800000 | O74: 외국인연구장학(박사 80%)
A75: 60 | B75: 공학 | C75: 에너지재료공학 | D75: GUDENA GUTEMA TESHOME | E75: 류학기 | F75: 박사 | G75: 2 | H75: 202125862 | I75: 433 | J75: B | K75: 에너지아주장학B | M75: 0 | N75: 4800000 | O75: 외국인연구장학(박사 80%)
A76: 61 | B76: 공학 | C76: 에너지재료공학 | D76: MUKKATH JOSEPH JOSLINE | F76: 박사 | G76: 1 | H76: 외국인 2차 | I76: 신입 | J76: A | K76: 에너지BK장학A | M76: 7800000 | N76: 0 | O76: 외국인연구장학(박사)
A77: 62 | B77: 공학 | C77: 에너지재료공학 | D77: WAQAS MUHAMMAD | F77: 박사 | G77: 1 | H77: 외국인1차 | I77: 신입 | J77: A | K77: 에너지BK장학A | M77: 7800000 | N77: 0 | O77: 외국인연구장학(박사)
C78: 에너지재료공학 | L78: =SUM(L41:L77) -> 19297500 | M78: =SUM(M41:M77) -> 135000000 | N78: =SUM(N41:N77) -> 54000000
A79: 63 | B79: 이학 | C79: 에너지화학 | D79: 이미현 | E79: 장혜영 | F79: 통합(석사) | G79: 4 | H79: 202024615 | I79: 865 | J79: S | K79: 에너지특별장학S | L79: 1345000 | M79: 4200000 | N79: 0
A80: 64 | B80: 이학 | C80: 에너지화학 | D80: 이현욱 | E80: 곽원진 | F80: 석사 | G80: 3 | H80: 202024803 | I80: 825 | J80: S | K80: 에너지특별장학S | L80: 1345000 | M80: 4200000 | N80: 0
A81: 65 | B81: 이학 | C81: 에너지화학 | D81: 양희성 | E81: 이인환 | F81: 석사 | G81: 4 | H81: 202024613 | I81: 675 | J81: S | K81: 에너지특별장학S | L81: 1345000 | M81: 4200000 | N81: 0
A82: 66 | B82: 이학 | C82: 에너지화학 | D82: 양용문 | E82: 장혜영 | F82: 석사 | G82: 2 | H82: 202124162 | I82: 639 | J82: S | K82: 에너지특별장학S | L82: 1345000 | M82: 4200000 | N82: 0
A83: 67 | B83: 이학 | C83: 에너지화학 | D83: 김성언 | E83: 장혜영 | F83: 석사 | G83: 4 | H83: 202024609 | I83: 625 | J83: S | K83: 에너지특별장학S | L83: 1345000 | M83: 4200000 | N83: 0
A84: 68 | B84: 이학 | C84: 에너지화학 | D84: 전효남 | E84: 강혁 | F84: 석사 | G84: 3 | H84: 202024804 | I84: 528.5 | J84: A | K84: 에너지우수장학A | L84: 538000 | M84: 4200000 | N84: 0
A85: 69 | B85: 이학 | C85: 에너지화학 | D85: 이상혁 | E85: 유성주 | F85: 석사 | G85: 2 | H85: 202124163 | I85: 525 | J85: B | K85: 에너지연구장학B | L85: 0 | M85: 0 | N85: 3600000
A86: 70 | B86: 이학 | C86: 에너지화학 | D86: 전상진 | E86: 곽원진 | F86: 석사 | G86: 2 | H86: 202124164 | I86: 497 | J86: B | K86: 에너지연구장학B | L86: 0 | M86: 0 | N86: 3600000
A87: 71 | B87: 이학 | C87: 에너지화학 | D87: 최민영 | E87: 이인환 | F87: 석사 | G87: 2 | H87: 202124165 | I87: 497 | J87: B | K87: 에너지연구장학B | L87: 0 | M87: 0 | N87: 3600000
A88: 72 | B88: 이학 | C88: 에너지화학 | D88: 고수민 | E88: 이인환 | F88: 석사 | G88: 4 | H88: 202024607 | I88: 475 | J88: B | K88: 에너지연구장학B | L88: 0 | M88: 0 | N88: 3600000
A89: 73 | B89: 이학 | C89: 에너지화학 | D89: 변희민 | E89: 장혜영 | F89: 석사 | G89: 2 | H89: 202124161 | I89: 474 | J89: B | K89: 에너지연구장학B | L89: 0 | M89: 0 | N89: 3600000
A90: 74 | B90: 이학 | C90: 에너지화학 | D90: 박현규 | E90: 윤호섭 | F90: 석사 | G90: 4 | H90: 202024610 | I90: 458.5 | J90: B | K90: 에너지연구장학B | L90: 0 | M90: 0 | N90: 3600000
A91: 75 | B91: 이학 | C91: 에너지화학 | D91: 윤예원 | E91: 김승주 | F91: 석사 | G91: 4 | H91: 202024614 | I91: 458.5 | J91: B | K91: 에너지연구장학B | L91: 0 | M91: 0 | N91: 3600000
A92: 76 | B92: 이학 | C92: 에너지화학 | D92: 안주현 | E92: 유영동 | F92: 석사 | G92: 4 | H92: 202024612 | I92: 425 | J92: B | K92: 에너지연구장학B | L92: 0 | M92: 0 | N92: 3600000
A93: 77 | B93: 이학 | C93: 에너지화학 | D93: 이동찬 | F93: 석사 | G93: 1 | H93: 수시1차 | I93: 신입 | J93: A | K93: 에너지우수장학A | N93: 0 | P93: * 미입학
A94: 78 | B94: 이학 | C94: 에너지화학 | D94: 우진성 | F94: 석사 | G94: 1 | H94: 수시1차 | I94: 신입 | J94: A | K94: 에너지우수장학A | L94: 538000 | M94: 4200000 | N94: 0
A95: 79 | B95: 이학 | C95: 에너지화학 | D95: 이영훈 | F95: 통합(석사) | G95: 1 | H95: 수시1차 | I95: 신입 | J95: A | K95: 에너지우수장학A | L95: 538000 | M95: 4200000 | N95: 0
A96: 80 | B96: 이학 | C96: 에너지화학 | D96: 하준호 | F96: 석사 | G96: 1 | H96: 정시 | I96: 신입 | J96: A | K96: 에너지우수장학A | L96: 538000 | M96: 4200000 | N96: 0
A97: 81 | B97: 이학 | C97: 에너지화학 | D97: 김나영 | F97: 석사 | G97: 1 | H97: 수시2차 | I97: 신입 | J97: A | K97: 에너지우수장학A | L97: 538000 | M97: 4200000 | N97: 0
A98: 82 | B98: 이학 | C98: 에너지화학 | D98: 김주은 | F98: 석사 | G98: 1 | H98: 정시 | I98: 신입 | J98: A | K98: 에너지우수장학A | L98: 538000 | M98: 4200000 | N98: 0
A99: 83 | B99: 이학 | C99: 에너지화학 | D99: 장재연 | F99: 석사 | G99: 1 | H99: 정시 | I99: 신입 | J99: A | K99: 에너지우수장학A | L99: 538000 | M99: 4200000 | N99: 0
A100: 84 | B100: 이학 | C100: 에너지화학 | D100: 조윤주 | F100: 석사 | G100: 1 | H100: 정시 | I100: 신입 | J100: A | K100: 에너지우수장학A | L100: 538000 | M100: 4200000 | N100: 0
A101: 85 | B101: 이학 | C101: 에너지화학 | D101: 정연주 | E101: 장혜영 | F101: 박사 | G101: 7 | H101: 201825370 | I101: 2175 | J101: S | K101: 에너지BK장학S | M101: 6000000 | N101: 1200000 | O101: 수료
A102: 86 | B102: 이학 | C102: 에너지화학 | D102: 이동준 | E102: 김환명 | F102: 통합(박사) | G102: 8 | H102: 201824478 | I102: 1210 | J102: S | K102: 에너지BK장학S | M102: 6000000 | N102: 1200000 | O102: 수료
A103: 87 | B103: 이학 | C103: 에너지화학 | D103: 김현경 | E103: 유영동 | F103: 통합(박사) | G103: 7 | H103: 201824668 | I103: 1002.5 | J103: A | K103: 에너지BK장학A | L103: 1076000 | M103: 7800000 | N103: 0
A104: 88 | B104: 이학 | C104: 에너지화학 | D104: 김진아 | E104: 김유권 | F104: 통합(박사) | G104: 6 | H104: 201924208 | I104: 820 | J104: A | K104: 에너지BK장학A | L104: 1076000 | M104: 7800000 | N104: 0
A105: 89 | B105: 이학 | C105: 에너지화학 | D105: 박주창 | E105: 김형택 | F105: 통합(박사) | G105: 12 | H105: 201624269 | I105: 819 | J105: A | K105: 에너지BK장학A | M105: 6000000 | O105: 수료
A106: 90 | B106: 이학 | C106: 에너지화학 | D106: 채주형 | E106: 이인환 | F106: 통합(박사) | G106: 5 | H106: 201924355 | I106: 662.5 | J106: A | K106: 에너지BK장학A | L106: 1076000 | M106: 7800000 | N106: 0
A107: 91 | B107: 이학 | C107: 에너지화학 | D107: 배정환 | E107: 유영동 | F107: 통합(박사) | G107: 6 | H107: 201924210 | I107: 500 | J107: B | K107: 에너지아주장학B | L107: 2421000 | M107: 0 | N107: 4800000
A108: 92 | B108: 이학 | C108: 에너지화학 | D108: 권장한 | E108: 강혁 | F108: 박사 | G108: 8 | H108: 201825256 | I108: 495 | J108: B | K108: 에너지아주장학B | N108: 4800000 | O108: 수료
A109: 93 | B109: 이학 | C109: 에너지화학 | D109: NKENKU ANIMBOM BUMA CARL | E109: 김유권 | F109: 박사 | G109: 5 | H109: 201925619 | I109: 488.5 | J109: B | K109: 에너지아주장학B | N109: 4800000 | O109: 수료 예정/외국인연구장학(박사 80%)
A110: 94 | B110: 이학 | C110: 에너지화학 | D110: 송경옥 | E110: 강혁 | F110: 통합(박사) | G110: 6 | H110: 201924212 | I110: 486.5 | J110: B | K110: 에너지아주장학B | L110: 2421000 | M110: 0 | N110: 4800000
A111: 95 | B111: 이학 | C111: 에너지화학 | D111: 김유관 | E111: 김유권 | F111: 통합(박사) | G111: 8 | H111: 201824473 | I111: 462.5 | J111: B | K111: 에너지아주장학B | O111: 수료 예정 | P111: * 취업
A112: 96 | B112: 이학 | C112: 에너지화학 | D112: KHEFIF FOUZIA | E112: 김승주 | F112: 박사 | G112: 6 | H112: 201925558 | I112: 440 | J112: B | K112: 에너지아주장학B | N112: 4800000 | O112: 수료/외국인연구장학(박사 80%)
A113: 97 | B113: 이학 | C113: 에너지화학 | D113: 성기혁 | F113: 박사 | G113: 1 | H113: 정시 | I113: 신입 | J113: A | K113: 에너지BK장학A | L113: 1076000 | M113: 7800000 | N113: 0
C114: 에너지화학 | L114: =SUM(L79:L113) -> 20175000 | M114: =SUM(M79:M113) -> 103800000 | N114: =SUM(N79:N113) -> 55200000
A115: 98 | B115: 이학 | C115: 에너지물리 | D115: 최중석 | E115: 염동일 | F115: 석사 | G115: 4 | H115: 202024605 | I115: 703.5 | J115: S | K115: 에너지특별장학S | L115: 1345000 | M115: 4200000 | N115: 0
A116: 99 | B116: 이학 | C116: 에너지물리 | D116: 최윤진 | E116: 염동일 | F116: 석사 | G116: 4 | H116: 202024604 | I116: 537.5 | J116: S | K116: 에너지특별장학S | L116: 1345000 | M116: 4200000 | N116: 0
A117: 100 | B117: 이학 | C117: 에너지물리 | D117: 허윤성 | E117: 이재웅 | F117: 석사 | G117: 3 | H117: 202024801 | I117: 525 | J117: S | K117: 에너지특별장학S | L117: 1345000 | M117: 4200000 | N117: 0
A118: 101 | B118: 이학 | C118: 에너지물리 | D118: 고창희 | E118: 이상운 | F118: 석사 | G118: 4 | H118: 202024599 | I118: 522.5 | J118: S | K118: 에너지특별장학S | L118: 1345000 | M118: 4200000 | N118: 0
A119: 102 | B119: 이학 | C119: 에너지물리 | D119: 박지양 | E119: 하나영 | F119: 석사 | G119: 4 | H119: 202024601 | I119: 517.5 | J119: S | K119: 에너지특별장학S | L119: 1345000 | M119: 4200000 | N119: 0
A120: 103 | B120: 이학 | C120: 에너지물리 | D120: 이재욱 | E120: 서호성 | F120: 석사 | G120: 4 | H120: 202024603 | I120: 517.5 | J120: S | K120: 에너지특별장학S | L120: 1345000 | M120: 4200000 | N120: 0
A121: 104 | B121: 이학 | C121: 에너지물리 | D121: 이상혁 | E121: 박지용 | F121: 석사 | G121: 2 | H121: 202124156 | I121: 497 | J121: A | K121: 에너지우수장학A | L121: 538000 | M121: 4200000 | N121: 0
A122: 105 | B122: 이학 | C122: 에너지물리 | D122: 최흥윤 | E122: 이상운 | F122: 석사 | G122: 4 | H122: 202024606 | I122: 487.5 | J122: A | K122: 에너지우수장학A | L122: 538000 | M122: 4200000 | N122: 0
A123: 106 | B123: 이학 | C123: 에너지물리 | D123: 성주영 | E123: 이상운 | F123: 석사 | G123: 3 | H123: 202024800 | I123: 483.5 | J123: A | K123: 에너지우수장학A | L123: 538000 | M123: 4200000 | N123: 0
A124: 107 | B124: 이학 | C124: 에너지물리 | D124: 정유재 | E124: 염동일 | F124: 석사 | G124: 2 | H124: 202124159 | I124: 483 | J124: A | K124: 에너지우수장학A | L124: 538000 | M124: 4200000 | N124: 0
A125: 108 | B125: 이학 | C125: 에너지물리 | D125: PRATAP AJAY | E125: 김성환 | F125: 석사 | G125: 2 | H125: 202124154 | I125: 475 | J125: A | K125: 에너지우수장학A | M125: 4200000 | N125: 0 | O125: 외국인연구장학(석사)
A126: 109 | B126: 이학 | C126: 에너지물리 | D126: 유희재 | E126: 하나영 | F126: 석사 | G126: 4 | H126: 202024602 | I126: 471 | J126: A | K126: 에너지우수장학A | L126: 538000 | M126: 4200000 | N126: 0
A127: 110 | B127: 이학 | C127: 에너지물리 | D127: 김태완 | E127: 이재웅 | F127: 석사 | G127: 3 | H127: 202024799 | I127: 462 | J127: A | K127: 에너지우수장학A | L127: 538000 | M127: 4200000 | N127: 0
A128: 111 | B128: 이학 | C128: 에너지물리 | D128: 박태준 | E128: 서호성 | F128: 석사 | G128: 2 | H128: 202124155 | I128: 450 | J128: B | K128: 에너지연구장학B | L128: 0 | M128: 0 | N128: 3600000
A129: 112 | B129: 이학 | C129: 에너지물리 | D129: PHUNG THI QUYNH | E129: 박지용 | F129: 석사 | G129: 3 | H129: 202024797 | I129: 446 | J129: B | K129: 에너지연구장학B | L129: 0 | M129: 0 | N129: 3600000 | O129: 외국인연구장학(석사)
A130: 113 | B130: 이학 | C130: 에너지물리 | D130: 전재덕 | E130: 이상운 | F130: 석사 | G130: 2 | H130: 202124158 | I130: 430 | J130: B | K130: 에너지연구장학B | L130: 0 | M130: 0 | N130: 3600000
A131: 114 | B131: 이학 | C131: 에너지물리 | D131: 이은석 | E131: 이상운 | F131: 석사 | G131: 3 | H131: 202024845 | I131: 417 | J131: B | K131: 에너지연구장학B | L131: 0 | M131: 0 | N131: 3600000
A132: 115 | B132: 이학 | C132: 에너지물리 | D132: 장서영 | E132: 이상운 | F132: 석사 | G132: 2 | H132: 202124157 | I132: 413 | J132: B | K132: 에너지연구장학B | L132: 0 | M132: 0 | N132: 3600000
A133: 116 | B133: 이학 | C133: 에너지물리 | D133: 조동인 | E133: 이재웅 | F133: 석사 | G133: 2 | H133: 202124160 | I133: 367 | J133: B | K133: 에너지연구장학B | L133: 0 | M133: 0 | N133: 3600000
A134: 117 | B134: 이학 | C134: 에너지물리 | D134: 전재영 | F134: 석사 | G134: 1 | H134: 정시 | I134: 신입 | J134: A | K134: 에너지우수장학A | L134: 538000 | M134: 4200000 | N134: 0
A135: 118 | B135: 이학 | C135: 에너지물리 | D135: 최주완 | F135: 석사 | G135: 1 | H135: 정시 | I135: 신입 | J135: A | K135: 에너지우수장학A | L135: 538000 | M135: 4200000 | N135: 0
A136: 119 | B136: 이학 | C136: 에너지물리 | D136: 김영철 | E136: 안영환 | F136: 박사 | G136: 6 | H136: 201925071 | I136: 1290 | J136: S | K136: 에너지BK장학S | M136: 6000000 | N136: 1200000 | O136: 수료
A137: 120 | B137: 이학 | C137: 에너지물리 | D137: 하성주 | E137: 염동일 | F137: 박사 | G137: 8 | H137: 201825255 | I137: 1215 | J137: S | K137: 에너지BK장학S | M137: 6000000 | N137: 1200000 | O137: 수료
A138: 121 | B138: 이학 | C138: 에너지물리 | D138: 김환식 | E138: 안영환 | F138: 통합(박사) | G138: 10 | H138: 201725126 | I138: 1143 | J138: S | K138: 에너지BK장학S | M138: 6000000 | N138: 1200000 | O138: 수료
A139: 122 | B139: 이학 | C139: 에너지물리 | D139: 박재덕 | E139: 염동일 | F139: 박사 | G139: 6 | H139: 201925574 | I139: 745 | J139: A | K139: 에너지BK장학A | M139: 6000000 | O139: 수료
A140: 123 | B140: 이학 | C140: 에너지물리 | D140: WAHAB ABDUL | E140: 김성환 | F140: 박사 | G140: 4 | H140: 202025693 | I140: 666.5 | J140: A | K140: 에너지BK장학A | M140: 7800000 | N140: 0 | O140: 외국인연구장학(박사 80%)
A141: 124 | B141: 이학 | C141: 에너지물리 | D141: 박희진 | E141: 서호성 | F141: 통합(박사) | G141: 5 | H141: 201924351 | I141: 529 | J141: A | K141: 에너지BK장학A | L141: 1076000 | M141: 7800000 | N141: 0
A142: 125 | B142: 이학 | C142: 에너지물리 | D142: 전규담 | E142: 하나영 | F142: 통합(박사) | G142: 5 | H142: 201924352 | I142: 525 | J142: A | K142: 에너지BK장학A | L142: 1076000 | M142: 7800000 | N142: 0
A143: 126 | B143: 이학 | C143: 에너지물리 | D143: 전승원 | E143: 안영환 | F143: 통합(박사) | G143: 8 | H143: 201824470 | I143: 508 | J143: B | K143: 에너지아주장학B | N143: 4800000 | O143: 수료
A144: 127 | B144: 이학 | C144: 에너지물리 | D144: 류시헌 | E144: 염동일 | F144: 박사 | G144: 4 | H144: 202025737 | I144: 500 | J144: B | K144: 에너지아주장학B | L144: 2421000 | M144: 0 | N144: 4800000
A145: 128 | B145: 이학 | C145: 에너지물리 | D145: NGUYEN KHA MINH | E145: 박지용 | F145: 박사 | G145: 3 | H145: 202025786 | I145: 483.5 | J145: B | K145: 에너지아주장학B | M145: 0 | N145: 4800000 | O145: 외국인연구장학(박사 80%)
A146: 129 | B146: 이학 | C146: 에너지물리 | D146: 민태열 | E146: 염동일 | F146: 박사 | G146: 4 | H146: 202025738 | I146: 483.5 | J146: B | K146: 에너지아주장학B | L146: 2421000 | M146: 0 | N146: 4800000
A147: 130 | B147: 이학 | C147: 에너지물리 | D147: JHA RAKESH KUMAR | E147: 김성환 | F147: 박사 | G147: 2 | H147: 202125858 | I147: 480 | J147: B | K147: 에너지아주장학B | M147: 0 | N147: 4800000 | O147: 외국인연구장학(박사 80%)
A148: 131 | B148: 이학 | C148: 에너지물리 | D148: 김세은 | F148: 박사 | G148: 1 | H148: 정시 | I148: 신입 | J148: A | K148: 에너지BK장학A | L148: 1076000 | M148: 7800000 | N148: 0
C149: 에너지물리 | L149: =SUM(L115:L148) -> 20444000 | M149: =SUM(M115:M148) -> 118200000 | N149: =SUM(N115:N148) -> 49200000
L151: =L9+L17+L40+L78+L114+L149 -> 84974900 | M151: =M9+M17+M40+M78+M114+M149 -> 434400000 | N151: =N9+N17+N40+N78+N114+N149 -> 196200000
K154: 대학원 | M154: BK
K155: 배정예산 | L155: 필요예산 | M155: 배정예산 | N155: 필요예산
K156: 291094000 | L156: =L151+N151 -> 281174900 | M156: 437500000 | N156: =M151 -> 434400000
K157: =K156-L156 -> 9919100 | M157: =M156-N156 -> 3100000
